bitfinex/quotes_BTCUSD_20230904
["timestamp","ask_amount","ask_price","bid_price","bid_amount"]
[1693865389631,0.28493242,25727.0,25726.0,0.024]
[1693865390272,0.28293242,25727.0,25726.0,0.011]
[1693865390628,0.28493242,25727.0,25726.0,0.011]
[1693865391148,0.28293242,25727.0,25726.0,0.011]
[1693865392531,0.28493242,25727.0,25726.0,0.024]
[1693865396700,0.28493242,25727.0,25726.0,0.062871]
[1693865401572,0.004,25727.0,25726.0,0.1670318]
[1693865401757,0.004,25727.0,25726.0,0.4038828]
[1693865401956,0.24993678,25735.0,25726.0,1.86328618]
[1693865402205,0.24993678,25735.0,25727.0,1.25000338]
[1693865402381,0.24993678,25735.0,25729.0,0.155464]
[1693865402580,0.24993678,25735.0,25730.0,0.54130338]
[1693865402763,0.24993678,25735.0,25731.0,0.194311]
[1693865402985,0.093044,25737.0,25734.0,0.0847]
[1693865403185,0.32775862,25738.0,25736.0,0.0847]
[1693865403385,0.32775862,25738.0,25737.0,0.20188661]
[1693865403581,0.23471462,25738.0,25737.0,0.27959461]
[1693865403942,0.25221,25739.0,25737.0,0.27959461]
[1693865403943,0.112644,25739.0,25737.0,0.27959461]
[1693865404152,0.112644,25739.0,25738.0,0.02795946]
[1693865404361,0.112644,25739.0,25738.0,0.10566546]
[1693865405445,0.0196,25739.0,25738.0,0.10566546]
[1693865405657,0.0196,25739.0,25738.0,0.077706]
[1693865406073,0.0196,25739.0,25738.0,0.116559]
[1693865406458,0.0396,25739.0,25738.0,0.118559]
[1693865406664,0.0636,25739.0,25738.0,0.120559]
[1693865407096,0.0636,25739.0,25738.0,0.081706]
[1693865407305,0.0636,25739.0,25738.0,0.120559]
[1693865407894,0.0636,25739.0,25738.0,0.205259]
[1693865408131,0.0636,25739.0,25738.0,0.2369303]
[1693865410183,0.0636,25739.0,25738.0,0.205259]
[1693865414706,0.0396,25739.0,25738.0,0.203259]
[1693865415111,0.0396,25739.0,25738.0,0.205259]
[1693865415544,0.0196,25739.0,25738.0,0.201259]
[1693865415949,0.0206,25739.0,25738.0,0.207259]
[1693865416157,0.0196,25739.0,25738.0,0.201259]
[1693865416363,0.0216,25739.0,25738.0,0.225259]
[1693865416563,0.0236,25739.0,25738.0,0.249259]
[1693865417600,0.0236,25739.0,25738.0,0.2853183]
[1693865419057,0.0236,25739.0,25738.0,0.249259]
[1693865423244,0.0236,25739.0,25738.0,0.63590427]
[1693865423388,0.0236,25739.0,25738.0,0.70586427]
[1693865423599,0.0236,25739.0,25738.0,0.70400427]
[1693865423796,0.0236,25739.0,25738.0,0.70424427]
[1693865424003,0.0236,25739.0,25738.0,0.8311795]
[1693865424196,0.0236,25739.0,25738.0,0.8299195]
[1693865424423,0.0236,25739.0,25738.0,0.8304595]
[1693865424623,0.0236,25739.0,25738.0,0.8399395]
[1693865424827,0.0236,25739.0,25738.0,0.8486995]
[1693865425102,0.0236,25739.0,25738.0,0.8569195]
[1693865425500,0.0236,25739.0,25738.0,0.8564995]
[1693865425700,0.0236,25739.0,25738.0,0.8545795]
[1693865425899,0.0236,25739.0,25738.0,0.8542195]
[1693865426136,0.0236,25739.0,25738.0,0.8658595]
[1693865426346,0.0236,25739.0,25738.0,1.2908795]
[1693865426553,0.0236,25739.0,25738.0,1.2806795]
[1693865426764,0.0236,25739.0,25738.0,1.2752795]
[1693865426966,0.0236,25739.0,25738.0,1.2735995]
[1693865427185,0.0216,25739.0,25738.0,1.2491195]
[1693865427397,0.24120243,25744.0,25738.0,1.2535595]
[1693865427605,0.001,25739.0,25738.0,0.675599]
[1693865427811,0.001,25739.0,25738.0,0.658959]
[1693865428022,0.2273271,25742.0,25738.0,0.225259]
[1693865428229,0.2273271,25742.0,25740.0,0.0847]
[1693865428439,0.2273271,25742.0,25741.0,0.116544]
[1693865428624,0.2273271,25742.0,25741.0,0.077696]
[1693865429009,0.2273271,25742.0,25741.0,0.038848]
[1693865429617,0.2273271,25742.0,25741.0,0.077696]
[1693865429819,0.2283271,25742.0,25741.0,0.102696]
[1693865430032,0.2283271,25742.0,25741.0,0.1228205]
[1693865430220,0.2293271,25742.0,25741.0,0.1228205]
[1693865430595,0.2283271,25742.0,25741.0,0.1228205]
[1693865431008,0.2293271,25742.0,25741.0,0.1478205]
[1693865431422,0.2293271,25742.0,25741.0,0.127696]
[1693865432534,0.2293271,25742.0,25741.0,0.166544]
[1693865435020,0.002,25742.0,25741.0,0.166544]
[1693865435673,0.002,25742.0,25741.0,0.251244]
[1693865438722,0.00189214,25742.0,25741.0,0.251244]
[1693865438876,0.00189214,25742.0,25741.0,0.2802533]
[1693865445766,0.00189214,25742.0,25741.0,0.66689857]
[1693865447292,0.00189214,25742.0,25741.0,0.2802533]
[1693865449118,0.29949433,25742.0,25741.0,0.05]
[1693865449329,1.07643433,25742.0,25741.0,0.05]
[1693865449566,0.29949433,25742.0,25741.0,0.05]
[1693865450206,0.29949433,25742.0,25741.0,0.088848]
[1693865451568,0.29949433,25742.0,25741.0,0.127696]
[1693865453415,0.00189214,25742.0,25741.0,0.1916685]
[1693865460735,1.04933277,25742.0,25741.0,0.05]
[1693865460963,0.27239277,25742.0,25741.0,0.05]
[1693865462465,1.04933277,25742.0,25741.0,0.05]
[1693865462671,2.33271214,25742.0,25741.0,0.05]
[1693865462884,3.57561857,25742.0,25741.0,0.05]
[1693865463100,3.82767247,25742.0,25741.0,0.05]
[1693865463544,4.08242599,25742.0,25741.0,0.05]
[1693865463760,3.51715113,25742.0,25741.0,0.025]
[1693865463960,3.51715113,25742.0,25741.0,0.003]
[1693865464162,3.51715113,25742.0,25736.0,0.038855]
[1693865464163,0.29757958,25741.0,25736.0,0.038855]
[1693865464426,1.78021684,25740.0,25733.0,0.02599967]
[1693865464595,0.76881866,25739.0,25737.0,0.038854]
[1693865464799,1.40436782,25739.0,25737.0,0.038854]
[1693865465679,2.18141482,25739.0,25737.0,0.038854]
[1693865466076,2.18141482,25739.0,25736.0,0.07771]
[1693865466293,2.18241482,25739.0,25737.0,0.011]
[1693865466647,2.18241482,25739.0,25737.0,0.019]
[1693865466846,2.18141482,25739.0,25737.0,0.008]
[1693865467255,0.25265489,25738.0,25737.0,0.008]
[1693865467481,1.02971589,25738.0,25737.0,0.008]
[1693865467849,1.02971589,25738.0,25737.0,0.019]
[1693865468235,1.80677689,25738.0,25737.0,0.019]
[1693865468439,1.80677689,25738.0,25737.0,0.011]
[1693865468858,1.80777689,25738.0,25737.0,0.027]
[1693865469062,1.80777689,25738.0,25737.0,0.016]
[1693865469278,2.58483789,25738.0,25737.0,0.016]
[1693865469472,2.58583789,25738.0,25737.0,0.036]
[1693865469697,3.05485638,25738.0,25737.0,0.036]
[1693865469911,2.80220149,25738.0,25737.0,0.036]
[1693865470121,3.06416594,25738.0,25737.0,0.036]
[1693865470538,2.67984745,25738.0,25737.0,0.036]
[1693865471753,0.002,25738.0,25737.0,0.036]
[1693865471950,0.002,25738.0,25737.0,0.074854]
[1693865472353,0.002,25738.0,25737.0,0.113708]
[1693865474266,0.002,25738.0,25737.0,0.152562]
[1693865476100,0.002,25738.0,25737.0,0.1801736]
[1693865479912,0.002,25738.0,25737.0,0.14237604]
[1693865480709,0.002,25738.0,25737.0,0.11476444]
[1693865480907,0.27084801,25738.0,25737.0,0.07591044]
[1693865483856,0.27084801,25738.0,25736.0,0.077709]
[1693865484171,0.27084801,25738.0,25736.0,0.038854]
[1693865484760,0.26984801,25738.0,25736.0,0.038854]
[1693865485195,0.27184801,25738.0,25736.0,0.061854]
[1693865485625,0.27084801,25738.0,25736.0,0.061854]
[1693865485833,0.26260462,25737.0,25736.0,0.085854]
[1693865486637,0.26260462,25737.0,25736.0,0.061854]
[1693865487020,0.26460462,25737.0,25736.0,0.062854]
[1693865487446,0.26660462,25737.0,25736.0,0.085854]
[1693865488910,0.26660462,25737.0,25736.0,0.047]
[1693865489116,1.82078662,25737.0,25736.0,0.047]
[1693865489317,2.59787762,25737.0,25736.0,0.047]
[1693865492467,2.72191827,25737.0,25736.0,0.047]
[1693865492665,2.80661827,25737.0,25736.0,0.047]
[1693865492860,2.89949835,25737.0,25736.0,0.047]
[1693865493059,2.71158473,25737.0,25736.0,0.047]
[1693865493313,2.80661827,25737.0,25736.0,0.047]
[1693865493529,2.91949835,25737.0,25736.0,0.047]
[1693865493782,2.91749835,25737.0,25736.0,0.023]
[1693865493973,3.30214362,25737.0,25730.0,0.038863]
[1693865494179,0.0847,25735.0,25730.0,0.077728]
[1693865494389,2.47307684,25734.0,25730.0,0.077728]
[1693865495045,2.331579,25734.0,25730.0,0.077728]
[1693865495699,2.333579,25734.0,25730.0,0.101728]
[1693865495908,1.710982,25734.0,25730.0,0.124728]
[1693865496509,1.710982,25734.0,25730.0,0.153444]
[1693865496710,0.27567723,25733.0,25730.0,0.153444]
[1693865497328,0.27567723,25733.0,25730.0,0.124728]
[1693865497795,0.27567723,25733.0,25730.0,0.101728]
[1693865497992,0.27767723,25733.0,25730.0,0.125728]
[1693865498621,0.27767723,25733.0,25730.0,0.101728]
[1693865498826,0.29219072,25732.0,25730.0,0.101728]
[1693865499032,0.29219072,25732.0,25730.0,0.125728]
[1693865499250,1.06943272,25732.0,25730.0,0.048]
[1693865499451,1.84668072,25732.0,25730.0,0.048]
[1693865499634,1.06943272,25732.0,25730.0,0.024]
[1693865499844,0.29219072,25732.0,25730.0,0.101729]
[1693865500049,0.29419072,25732.0,25730.0,0.125729]
[1693865500714,0.29419072,25732.0,25730.0,0.101729]
[1693865501144,0.29619072,25732.0,25730.0,0.125729]
[1693865503771,0.004,25732.0,25731.0,0.0847]
[1693865503993,0.004,25732.0,25731.0,0.201289]
[1693865504640,0.002,25732.0,25731.0,0.201289]
[1693865504857,0.002,25732.0,25731.0,0.224289]
[1693865505071,0.004,25732.0,25731.0,0.2864319]
[1693865508434,0.004,25732.0,25731.0,0.67307717]
[1693865520841,0.004,25732.0,25731.0,0.047]
[1693865522220,0.004,25732.0,25731.0,0.085863]
[1693865524142,0.004,25732.0,25731.0,0.047]
[1693865524363,0.30258729,25732.0,25731.0,0.047]
[1693865525124,1.07982929,25732.0,25731.0,0.047]
[1693865525475,1.85707129,25732.0,25731.0,0.047]
[1693865528986,1.85707129,25732.0,25731.0,0.049]
[1693865531395,1.07982929,25732.0,25731.0,0.049]
[1693865537672,0.30258729,25732.0,25731.0,0.049]
[1693865539475,0.004,25732.0,25731.0,0.28463132]
[1693865540947,0.004,25732.0,25731.0,0.38531132]
[1693865541154,0.004,25732.0,25731.0,0.38405132]
[1693865541360,0.004,25732.0,25731.0,0.38135132]
[1693865541576,0.004,25732.0,25731.0,0.86550483]
[1693865541791,0.004,25732.0,25731.0,0.86736483]
[1693865542003,0.004,25732.0,25731.0,0.86670483]
[1693865542437,0.004,25732.0,25731.0,0.86538483]
[1693865542637,0.004,25732.0,25731.0,0.86484483]
[1693865542813,0.004,25732.0,25731.0,0.86286483]
[1693865543042,0.004,25732.0,25731.0,0.85128483]
[1693865543323,0.004,25732.0,25731.0,0.84648483]
[1693865543554,0.004,25732.0,25731.0,0.84618483]
[1693865543726,0.004,25732.0,25731.0,0.84582483]
[1693865543927,0.004,25732.0,25731.0,0.84552483]
[1693865544134,0.004,25732.0,25731.0,0.84504483]
[1693865544402,0.004,25732.0,25731.0,0.84390483]
[1693865544630,0.004,25732.0,25731.0,0.84330483]
[1693865544852,0.004,25732.0,25731.0,0.84324483]
[1693865545049,0.004,25732.0,25731.0,0.84294483]
[1693865545249,0.004,25732.0,25731.0,0.84264483]
[1693865545473,0.004,25732.0,25731.0,0.84228483]
[1693865545679,0.004,25732.0,25731.0,0.84210483]
[1693865545885,0.004,25732.0,25731.0,0.84258483]
[1693865546060,0.004,25732.0,25731.0,0.84450483]
[1693865546259,0.004,25732.0,25731.0,0.84414483]
[1693865546464,0.004,25732.0,25731.0,0.85158483]
[1693865546667,0.004,25732.0,25731.0,0.86124483]
[1693865546872,0.004,25732.0,25731.0,0.86388483]
[1693865547189,0.004,25732.0,25731.0,0.86958483]
[1693865547392,0.004,25732.0,25731.0,0.86088483]
[1693865547619,0.004,25732.0,25731.0,0.85434483]
[1693865547824,0.004,25732.0,25731.0,0.85344483]
[1693865548007,0.004,25732.0,25731.0,0.85158483]
[1693865548213,0.004,25732.0,25731.0,0.85128483]
[1693865548379,0.004,25732.0,25731.0,0.85098483]
[1693865548587,0.004,25732.0,25731.0,0.85104483]
[1693865548791,0.004,25732.0,25731.0,0.85128483]
[1693865548970,0.004,25732.0,25731.0,0.85086483]
[1693865549170,0.004,25732.0,25731.0,0.85098483]
[1693865549368,0.004,25732.0,25731.0,0.85020483]
[1693865549593,0.004,25732.0,25731.0,0.85050483]
[1693865549794,0.004,25732.0,25731.0,0.85020483]
[1693865549998,0.004,25732.0,25731.0,0.84966483]
[1693865550200,0.004,25732.0,25731.0,0.84972483]
[1693865550598,0.004,25732.0,25731.0,0.84942483]
[1693865550904,0.004,25732.0,25731.0,0.84792483]
[1693865551101,0.004,25732.0,25731.0,0.84774483]
[1693865551331,0.004,25732.0,25731.0,0.84744483]
[1693865551502,0.004,25732.0,25731.0,0.84726483]
[1693865551702,0.004,25732.0,25731.0,0.84696483]
[1693865551930,0.004,25732.0,25731.0,0.84672483]
[1693865552082,0.004,25732.0,25731.0,0.84546483]
[1693865552307,0.004,25732.0,25731.0,0.84570483]
[1693865552510,0.004,25732.0,25731.0,0.84966483]
[1693865552705,0.004,25732.0,25731.0,0.84798483]
[1693865552953,0.004,25732.0,25731.0,0.84792483]
[1693865553111,0.004,25732.0,25731.0,0.84078483]
[1693865553309,0.004,25732.0,25731.0,0.84072483]
[1693865553695,0.004,25732.0,25731.0,0.84024483]
[1693865553890,0.004,25732.0,25731.0,0.84000483]
[1693865554240,0.004,25732.0,25731.0,0.84006483]
[1693865554416,0.004,25732.0,25731.0,0.83970483]
[1693865554632,0.004,25732.0,25731.0,0.84462483]
[1693865554853,0.004,25732.0,25731.0,0.84414483]
[1693865555012,0.004,25732.0,25731.0,0.84450483]
[1693865555372,0.004,25732.0,25731.0,0.84438483]
[1693865555575,0.004,25732.0,25731.0,0.84342483]
[1693865555748,0.004,25732.0,25731.0,0.84330483]
[1693865555955,0.004,25732.0,25731.0,0.84444483]
[1693865556156,0.004,25732.0,25731.0,0.84348483]
[1693865556359,0.004,25732.0,25731.0,0.84342483]
[1693865556562,0.004,25732.0,25731.0,0.84186483]
[1693865556760,0.004,25732.0,25731.0,0.84168483]
[1693865556940,0.004,25732.0,25731.0,0.83742483]
[1693865557173,0.004,25732.0,25731.0,0.83730483]
[1693865557375,0.004,25732.0,25731.0,0.84078483]
[1693865557575,0.004,25732.0,25731.0,0.84060483]
[1693865557781,0.004,25732.0,25731.0,0.84030483]
[1693865558096,0.004,25732.0,25731.0,0.83958483]
[1693865558300,0.004,25732.0,25731.0,0.83982483]
[1693865558646,0.004,25732.0,25731.0,0.84006483]
[1693865558851,0.004,25732.0,25731.0,0.83940483]
[1693865558980,0.004,25732.0,25731.0,0.83640483]
[1693865559180,0.004,25732.0,25731.0,0.83568483]
[1693865559385,0.004,25732.0,25731.0,0.83550483]
[1693865559843,0.004,25732.0,25731.0,0.83526483]
[1693865560026,0.004,25732.0,25731.0,0.83286483]
[1693865560251,0.004,25732.0,25731.0,0.76440483]
[1693865561494,0.004,25732.0,25731.0,0.67127659]
[1693865567674,0.004,25732.0,25731.0,0.250289]
[1693865568310,0.23296927,25732.0,25731.0,0.049]
[1693865576112,0.004,25732.0,25731.0,0.049]
[1693865581762,1.07002737,25732.0,25731.0,0.049]
[1693865584512,2.62451137,25732.0,25731.0,0.049]
[1693865584710,2.70921137,25732.0,25731.0,0.049]
[1693865585134,2.62451137,25732.0,25731.0,0.049]
[1693865587158,3.01115664,25732.0,25731.0,0.049]
[1693865588267,2.62451137,25732.0,25731.0,0.049]
[1693865597767,2.335726,25732.0,25731.0,0.049]
[1693865597971,1.558484,25732.0,25731.0,0.049]
[1693865603009,0.781242,25732.0,25731.0,0.049]
[1693865604645,0.004,25732.0,25731.0,0.049]
[1693865605897,0.004,25732.0,25731.0,0.32024711]
[1693865606104,0.004,25732.0,25731.0,0.76093898]
[1693865606259,0.004,25732.0,25731.0,0.77167898]
[1693865606475,0.004,25732.0,25731.0,0.78205898]
[1693865606681,0.004,25732.0,25731.0,0.82206198]
[1693865606897,0.004,25732.0,25731.0,0.82758198]
[1693865607271,0.004,25732.0,25731.0,0.82644198]
[1693865607583,0.002,25732.0,25731.0,0.80616198]
[1693865607801,0.002,25732.0,25731.0,0.83014198]
[1693865607802,0.003,25732.0,25731.0,0.83014198]
[1693865608004,0.001,25732.0,25731.0,0.80702198]
[1693865608283,0.001,25732.0,25731.0,0.80198198]
[1693865608436,0.002,25732.0,25731.0,0.82674198]
[1693865608644,0.001,25732.0,25731.0,0.80156198]
[1693865608847,0.001,25732.0,25731.0,0.80132198]
[1693865609105,0.002,25732.0,25731.0,0.82626198]
[1693865609309,0.002,25732.0,25731.0,0.82608198]
[1693865609516,0.002,25732.0,25731.0,0.82578198]
[1693865609699,0.002,25732.0,25731.0,0.82440198]
[1693865609902,0.002,25732.0,25731.0,0.82422198]
[1693865610114,0.002,25732.0,25731.0,0.82470198]
[1693865610324,0.002,25732.0,25731.0,0.82464198]
[1693865610527,0.002,25732.0,25731.0,0.82446198]
[1693865610865,0.002,25732.0,25731.0,0.58702213]
[1693865611069,0.002,25732.0,25731.0,0.58660213]
[1693865611222,0.002,25732.0,25731.0,0.67118213]
[1693865611427,0.002,25732.0,25731.0,0.70986513]
[1693865611625,0.002,25732.0,25731.0,0.70968513]
[1693865611803,0.002,25732.0,25731.0,0.70932513]
[1693865612148,0.002,25732.0,25731.0,0.70824513]
[1693865612321,0.002,25732.0,25731.0,0.70812513]
[1693865612499,0.002,25732.0,25731.0,0.70866513]
[1693865612721,0.002,25732.0,25731.0,0.70794513]
[1693865612927,0.002,25732.0,25731.0,0.70806513]
[1693865613130,0.002,25732.0,25731.0,0.74463438]
[1693865613330,0.002,25732.0,25731.0,0.74433438]
[1693865613531,0.002,25732.0,25731.0,0.74445438]
[1693865613758,0.002,25732.0,25731.0,0.74427438]
[1693865613958,0.002,25732.0,25731.0,0.74421438]
[1693865614320,0.002,25732.0,25731.0,0.74319438]
[1693865614551,0.002,25732.0,25731.0,0.74337438]
[1693865614723,0.002,25732.0,25731.0,0.74319438]
[1693865614928,0.002,25732.0,25731.0,0.74157438]
[1693865615144,0.002,25732.0,25731.0,0.74241438]
[1693865615351,0.002,25732.0,25731.0,0.74313438]
[1693865615553,0.002,25732.0,25731.0,0.65856693]
[1693865615761,0.002,25732.0,25731.0,0.65790693]
[1693865615963,0.002,25732.0,25731.0,0.65886693]
[1693865616177,0.002,25732.0,25731.0,0.65922693]
[1693865616389,0.002,25732.0,25731.0,0.65826693]
[1693865616586,0.002,25732.0,25731.0,0.65778693]
[1693865616788,0.002,25732.0,25731.0,0.65676693]
[1693865616947,0.002,25732.0,25731.0,0.65664693]
[1693865617147,0.002,25732.0,25731.0,0.65418693]
[1693865617348,0.002,25732.0,25731.0,0.65412693]
[1693865617546,0.002,25732.0,25731.0,0.65400693]
[1693865617749,0.002,25732.0,25731.0,0.65358693]
[1693865617971,0.002,25732.0,25731.0,0.65346693]
[1693865618153,0.002,25732.0,25731.0,0.65130693]
[1693865618347,0.002,25732.0,25731.0,0.65124693]
[1693865618754,0.002,25732.0,25731.0,0.65118693]
[1693865618957,0.002,25732.0,25731.0,0.65112693]
[1693865619160,0.002,25732.0,25731.0,0.65106693]
[1693865619577,0.002,25732.0,25731.0,0.65076693]
[1693865619782,0.002,25732.0,25731.0,0.65238693]
[1693865619938,0.002,25732.0,25731.0,0.65220693]
[1693865620332,0.002,25732.0,25731.0,0.65226693]
[1693865620548,0.002,25732.0,25731.0,0.65286693]
[1693865620746,0.002,25732.0,25731.0,0.65274693]
[1693865620948,0.002,25732.0,25731.0,0.65268693]
[1693865621177,0.002,25732.0,25731.0,0.65262693]
[1693865621354,0.002,25732.0,25731.0,0.65250693]
[1693865621534,0.002,25732.0,25731.0,0.69130993]
[1693865621733,0.002,25732.0,25731.0,0.69118993]
[1693865621933,0.002,25732.0,25731.0,0.69028993]
[1693865622134,0.002,25732.0,25731.0,0.69022993]
[1693865622311,0.002,25732.0,25731.0,0.67894993]
[1693865622500,0.002,25732.0,25731.0,0.66448993]
[1693865622698,0.002,25732.0,25731.0,0.66454993]
[1693865622904,0.002,25732.0,25731.0,0.66634993]
[1693865623111,0.002,25732.0,25731.0,0.66418993]
[1693865623321,0.002,25732.0,25731.0,0.66442993]
[1693865623560,0.002,25732.0,25731.0,0.66412993]
[1693865623768,0.002,25732.0,25731.0,0.66442993]
[1693865623975,0.002,25732.0,25731.0,0.66430993]
[1693865624133,0.002,25732.0,25731.0,0.66484993]
[1693865624472,0.002,25732.0,25731.0,0.66766993]
[1693865624673,0.002,25732.0,25731.0,0.66760993]
[1693865625033,0.002,25732.0,25731.0,0.66748993]
[1693865625263,0.002,25732.0,25731.0,0.66718993]
[1693865625708,0.002,25732.0,25731.0,0.66148993]
[1693865625922,0.002,25732.0,25731.0,0.66112993]
[1693865626133,0.002,25732.0,25731.0,0.66124993]
[1693865626318,0.002,25732.0,25731.0,0.66298993]
[1693865626591,0.002,25732.0,25731.0,0.65998993]
[1693865626807,0.002,25732.0,25731.0,0.66028993]
[1693865627004,0.002,25732.0,25731.0,0.66034993]
[1693865627180,0.002,25732.0,25731.0,0.66166993]
[1693865627388,0.002,25732.0,25731.0,0.66112993]
[1693865627584,0.002,25732.0,25731.0,0.66118993]
[1693865627789,0.002,25732.0,25731.0,0.66106993]
[1693865627989,0.002,25732.0,25731.0,0.66076993]
[1693865628198,0.002,25732.0,25731.0,0.66082993]
[1693865628463,0.002,25732.0,25731.0,0.66040993]
[1693865628615,0.002,25732.0,25731.0,0.66232993]
[1693865628794,0.002,25732.0,25731.0,0.66376993]
[1693865628993,0.002,25732.0,25731.0,0.66268993]
[1693865629221,0.002,25732.0,25731.0,0.66166993]
[1693865629399,0.002,25732.0,25731.0,0.70071293]
[1693865629602,0.002,25732.0,25731.0,0.70101293]
[1693865629802,0.002,25732.0,25731.0,0.69945293]
[1693865630004,0.002,25732.0,25731.0,0.69963293]
[1693865630187,0.002,25732.0,25731.0,0.70029293]
[1693865630397,0.002,25732.0,25731.0,0.70287293]
[1693865630615,0.002,25732.0,25731.0,0.70047293]
[1693865630818,0.002,25732.0,25731.0,0.70329293]
[1693865631153,0.002,25732.0,25731.0,0.70347293]
[1693865631354,0.002,25732.0,25731.0,0.31526766]
[1693865631560,0.002,25732.0,25731.0,0.31040766]
[1693865631763,0.002,25732.0,25731.0,0.31046766]
[1693865632101,0.002,25732.0,25731.0,0.31070766]
[1693865632212,0.002,25732.0,25731.0,0.31190766]
[1693865632413,0.002,25732.0,25731.0,0.31208766]
[1693865632984,0.002,25732.0,25731.0,0.31232766]
[1693865633189,0.002,25732.0,25731.0,0.31166766]
[1693865633403,0.002,25732.0,25731.0,0.31208766]
[1693865633530,0.002,25732.0,25731.0,0.31154766]
[1693865633730,0.002,25732.0,25731.0,0.31346766]
[1693865633986,0.002,25732.0,25731.0,0.31352766]
[1693865634196,0.002,25732.0,25731.0,0.31346766]
[1693865634373,0.002,25732.0,25731.0,0.31280766]
[1693865634570,0.002,25732.0,25731.0,0.31112766]
[1693865634779,0.002,25732.0,25731.0,0.31274766]
[1693865634980,0.002,25732.0,25731.0,0.31424766]
[1693865635319,0.002,25732.0,25731.0,0.31436766]
[1693865635481,0.002,25732.0,25731.0,0.31472766]
[1693865635701,0.002,25732.0,25731.0,0.31466766]
[1693865635897,0.002,25732.0,25731.0,0.26776466]
[1693865636076,0.002,25732.0,25731.0,0.26956466]
[1693865636259,0.002,25732.0,25731.0,0.26974466]
[1693865636456,0.002,25732.0,25731.0,0.19324749]
[1693865636703,0.002,25732.0,25731.0,0.12652749]
[1693865637217,0.002,25732.0,25731.0,0.20086749]
[1693865637438,0.002,25732.0,25731.0,0.20128749]
[1693865637613,0.002,25732.0,25731.0,0.20140749]
[1693865637813,0.002,25732.0,25731.0,0.20152749]
[1693865638019,0.002,25732.0,25731.0,0.24908401]
[1693865638196,0.002,25732.0,25731.0,0.24920401]
[1693865638401,0.002,25732.0,25731.0,0.24878401]
[1693865638602,0.002,25732.0,25731.0,0.24884401]
[1693865638797,0.002,25732.0,25731.0,0.24878401]
[1693865639004,0.002,25732.0,25731.0,0.24650401]
[1693865639208,0.002,25732.0,25731.0,0.24770401]
[1693865639430,0.002,25732.0,25731.0,0.24758401]
[1693865639606,0.002,25732.0,25731.0,0.24746401]
[1693865639807,0.002,25732.0,25731.0,0.24758401]
[1693865640037,0.002,25732.0,25731.0,0.24782401]
[1693865640230,0.002,25732.0,25731.0,0.24794401]
[1693865640490,0.002,25732.0,25731.0,0.24782401]
[1693865640638,0.002,25732.0,25731.0,0.24794401]
[1693865640865,0.002,25732.0,25731.0,0.24818401]
[1693865641060,0.002,25732.0,25731.0,0.24806401]
[1693865641285,0.002,25732.0,25731.0,0.24788401]
[1693865641421,0.002,25732.0,25731.0,0.24812401]
[1693865641621,0.002,25732.0,25731.0,0.24752401]
[1693865641826,0.002,25732.0,25731.0,0.24776401]
[1693865642170,0.002,25732.0,25731.0,0.24956401]
[1693865642366,0.002,25732.0,25731.0,0.24992401]
[1693865642571,0.002,25732.0,25731.0,0.24800401]
[1693865642772,0.002,25732.0,25731.0,0.24842401]
[1693865642983,0.002,25732.0,25731.0,0.24950401]
[1693865643202,0.002,25732.0,25731.0,0.24788401]
[1693865643393,0.002,25732.0,25731.0,0.24692401]
[1693865643595,0.002,25732.0,25731.0,0.24812401]
[1693865643768,0.002,25732.0,25731.0,0.24824401]
[1693865643973,0.002,25732.0,25731.0,0.24842401]
[1693865644174,0.002,25732.0,25731.0,0.24866401]
[1693865644381,0.002,25732.0,25731.0,0.24878401]
[1693865644582,0.002,25732.0,25731.0,0.24872401]
[1693865644946,0.002,25732.0,25731.0,0.24884401]
[1693865645099,0.002,25732.0,25731.0,0.24902401]
[1693865645305,0.002,25732.0,25731.0,0.24884401]
[1693865645533,0.002,25732.0,25731.0,0.24902401]
[1693865645667,0.002,25732.0,25731.0,0.25226401]
[1693865645873,0.002,25732.0,25731.0,0.25232401]
[1693865646098,0.002,25732.0,25731.0,0.25094401]
[1693865646298,0.002,25732.0,25731.0,0.25088401]
[1693865646504,0.002,25732.0,25731.0,0.25292401]
[1693865646705,0.002,25732.0,25731.0,0.25496401]
[1693865646879,0.002,25732.0,25731.0,0.25382401]
[1693865647079,0.002,25732.0,25731.0,0.25256401]
[1693865647339,0.002,25732.0,25731.0,0.25364401]
[1693865647566,0.002,25732.0,25731.0,0.25376401]
[1693865647770,0.002,25732.0,25731.0,0.25418401]
[1693865647981,0.002,25732.0,25731.0,0.26018401]
[1693865648185,0.002,25732.0,25731.0,0.26000401]
[1693865648335,0.002,25732.0,25731.0,0.26006401]
[1693865648541,0.002,25732.0,25731.0,0.26012401]
[1693865648740,0.002,25732.0,25731.0,0.3537615]
[1693865648946,0.002,25732.0,25731.0,0.3823815]
[1693865649124,0.002,25732.0,25731.0,0.3850215]
[1693865649322,0.002,25732.0,25731.0,0.3853815]
[1693865649584,0.002,25732.0,25731.0,0.77382677]
[1693865649896,0.002,25732.0,25731.0,0.77358677]
[1693865650075,0.002,25732.0,25731.0,0.77316677]
[1693865650289,0.002,25732.0,25731.0,0.81878552]
[1693865650542,0.002,25732.0,25731.0,0.81830552]
[1693865650776,0.002,25732.0,25731.0,0.81758552]
[1693865650985,0.002,25732.0,25731.0,0.81572552]
[1693865651188,0.002,25732.0,25731.0,0.81452552]
[1693865651598,0.002,25732.0,25731.0,0.81380552]
[1693865651837,0.002,25732.0,25731.0,0.85984427]
[1693865652045,0.002,25732.0,25731.0,0.85924427]
[1693865652253,0.002,25732.0,25731.0,0.85972427]
[1693865652473,0.002,25732.0,25731.0,0.85936427]